Workbook

Sheet ДАННЫЕ
C1: =MAX(C7:C16) -> 41 | J1: =MAX(J7:J16) -> 0 | K1: =MAX(K7:K16) -> 41 | L1: =MAX(L7:L16) -> 40 | M1: =MAX(M7:M16) -> 42 | N1: =MAX(N7:N16) -> 40 | O1: =MAX(O7:O16) -> 31 | P1: =MAX(P7:P16) -> 45 | Q1: =MAX(Q7:Q16) -> 34 | R1: =MAX(R7:R16) -> 34 | S1: =MAX(S7:S16) -> 42 | T1: =MAX(T7:T16) -> 34 | U1: =MAX(U7:U16) -> 39 | V1: =MAX(V7:V16) -> 31 | W1: =MAX(W7:W16) -> 42 | X1: =MAX(X7:X16) -> 42 | Y1: =MAX(Y7:Y16) -> 38 | Z1: =MAX(Z7:Z16) -> 33 | AA1: =MAX(AA7:AA16) -> 33 | AB1: =MAX(AB7:AB16) -> 35 | AC1: =MAX(AC7:AC16) -> 33 | AD1: =MAX(AD7:AD16) -> 33 | AE1: =MAX(AE7:AE16) -> 30 | AF1: =MAX(AF7:AF16) -> 0 | AG1: =MAX(AG7:AG16) -> 0 | AH1: =MAX(AH7:AH16) -> 0 | AI1: =MAX(AI7:AI16) -> 0 | AJ1: =MAX(AJ7:AJ16) -> 0 | AK1: =MAX(#REF!) ->  | AL1: =MAX(#REF!) ->  | AM1: MAX
B2: РЕЗУЛЬТАТЫ | C2: =MIN(C7:C16) -> 0 | J2: =MIN(J7:J16) -> 0 | K2: =MIN(K7:K16) -> 0 | L2: =MIN(L7:L16) -> 0 | M2: =MIN(M7:M16) -> 0 | N2: =MIN(N7:N16) -> 0 | O2: =MIN(O7:O16) -> 0 | P2: =MIN(P7:P16) -> 0 | Q2: =MIN(Q7:Q16) -> 0 | R2: =MIN(R7:R16) -> 0 | S2: =MIN(S7:S16) -> 0 | T2: =MIN(T7:T16) -> 0 | U2: =MIN(U7:U16) -> 0 | V2: =MIN(V7:V16) -> 0 | W2: =MIN(W7:W16) -> 2 | X2: =MIN(X7:X16) -> 0 | Y2: =MIN(Y7:Y16) -> 0 | Z2: =MIN(Z7:Z16) -> 0 | AA2: =MIN(AA7:AA16) -> 0 | AB2: =MIN(AB7:AB16) -> 0 | AC2: =MIN(AC7:AC16) -> 0 | AD2: =MIN(AD7:AD16) -> 0 | AE2: =MIN(AE7:AE16) -> 0 | AF2: =MIN(AF7:AF16) -> 0 | AG2: =MIN(AG7:AG16) -> 0 | AH2: =MIN(AH7:AH16) -> 0 | AI2: =MIN(AI7:AI16) -> 0 | AJ2: =MIN(AJ7:AJ16) -> 0 | AK2: =MIN(#REF!) ->  | AL2: =MIN(#REF!) ->  | AM2: MIN
C3: =AVERAGE(C7:C16) -> 13.66666667 | J3: =AVERAGE(J7:J16) ->  | K3: =AVERAGE(K7:K16) -> 22.33333333 | L3: =AVERAGE(L7:L16) -> 21.71428571 | M3: =AVERAGE(M7:M16) -> 21.66666667 | N3: =AVERAGE(N7:N16) -> 23.88888889 | O3: =AVERAGE(O7:O16) -> 23 | P3: =AVERAGE(P7:P16) -> 28 | Q3: =AVERAGE(Q7:Q16) -> 18.8 | R3: =AVERAGE(R7:R16) -> 21.55555556 | S3: =AVERAGE(S7:S16) -> 22.42857143 | T3: =AVERAGE(T7:T16) -> 17 | U3: =AVERAGE(U7:U16) -> 19.44444444 | V3: =AVERAGE(V7:V16) -> 23 | W3: =AVERAGE(W7:W16) -> 23 | X3: =AVERAGE(X7:X16) -> 22 | Y3: =AVERAGE(Y7:Y16) -> 21.55555556 | Z3: =AVERAGE(Z7:Z16) -> 21.66666667 | AA3: =AVERAGE(AA7:AA16) -> 24 | AB3: =AVERAGE(AB7:AB16) -> 23.375 | AC3: =AVERAGE(AC7:AC16) -> 20.83333333 | AD3: =AVERAGE(AD7:AD16) -> 20 | AE3: =AVERAGE(AE7:AE16) -> 16.5 | AF3: =AVERAGE(AF7:AF16) ->  | AG3: =AVERAGE(AG7:AG16) ->  | AH3: =AVERAGE(AH7:AH16) ->  | AI3: =AVERAGE(AI7:AI16) ->  | AJ3: =AVERAGE(AJ7:AJ16) ->  | AK3: =AVERAGE(#REF!) ->  | AL3: =AVERAGE(#REF!) ->  | AM3: AVERAGE
A4: ВВОД | T4: ДАТА
A5: № П/П | B5: ФИО | C5: 2014-03-01 | D5: 2014-03-02 | K5: 2014-03-03 | L5: 2014-03-04 | M5: 2014-03-05 | N5: 2014-03-06 | O5: 2014-03-07 | P5: 2014-03-08 | Q5: 2014-03-09 | R5: 2014-03-10 | S5: 2014-03-11 | T5: 2014-03-12 | U5: 2014-03-13 | V5: 2014-03-14 | W5: 2014-03-15 | X5: 2014-03-16 | Y5: 2014-03-17 | Z5: 2014-03-18 | AA5: 2014-03-19 | AB5: 2014-03-20 | AC5: 2014-03-21 | AD5: 2014-03-22 | AE5: 2014-03-23 | AF5: 2014-03-24 | AG5: 2014-03-25 | AH5: 2014-03-26 | AI5: 2014-03-27 | AJ5: 2014-02-28 | AL5: ВСЕГО | AO5: лучший | AP5: худший
B6: НОРМА | AO6: лучший | AP6: худший
A7: 29 | B7: ИГНАТОВА ОЛЬГА | D7: 27 | K7: 12 | L7: 0 | M7: 0 | N7: 2 | R7: 8 | S7: 2 | T7: 7 | U7: 5 | AL7: =SUM(C7:AJ7) -> 63 | AO7: =INDEX(B7:B16,MATCH(MAX(AL7:AL16),AL7:AL16,0)) -> ЗАРОЩИНЦЕВ НИКОЛАЙ | AP7: =INDEX(B7:B16,MATCH(MIN(AL7:AL16),AL7:AL16,0)) -> ПОЗДЫРЕВА АНАСТАСИЯ
A8: 4 | B8: РАСТРОВА ТАТЬЯНА | D8: 27 | K8: 41 | M8: 42 | N8: 33 | O8: 31 | R8: 34 | S8: 36 | T8: 31 | U8: 39 | V8: 30 | Y8: 38 | Z8: 33 | AA8: 32 | AB8: 33 | AC8: 33 | AD8: 33 | AL8: 546
B9: КРАСНОВА ЛИЛИЯ | D9: 0 | K9: 35 | L9: 40 | M9: 33 | N9: 40 | O9: 29 | R9: 32 | S9: 42 | T9: 34 | U9: 35 | V9: 30 | Y9: 30 | Z9: 25 | AA9: 33 | AB9: 35 | AC9: 30 | AL9: 503
A10: 12 | B10: ПОЗДЫРЕВА АНАСТАСИЯ | C10: 0 | D10: 0 | K10: 0 | N10: 0 | O10: 0 | P10: 3 | Q10: 0 | T10: 0 | U10: 0 | V10: 0 | W10: 5 | X10: 5 | Y10: 5 | AB10: 0 | AC10: 0 | AD10: 0 | AE10: 0 | AL10: 18
B11: ЕЛЕСЕЦКАЯ ВЛАДИСЛАВА | D11: 28 | K11: 24 | L11: 24 | M11: 25 | N11: 27 | O11: 24 | R11: 24 | S11: 24 | T11: 30 | U11: 22 | V11: 24 | Y11: 19 | Z11: 23 | AA11: 25 | AB11: 21 | AC11: 24 | AL11: 388
A12: 7 | B12: МАХЛАЙ АНАСТАСИЯ | C12: 0 | D12: 26 | K12: 0 | L12: 7 | M12: 0 | P12: 0 | Q12: 1 | R12: 0 | S12: 0 | T12: 0 | U12: 0 | W12: 2 | X12: 0 | Y12: 0 | Z12: 0 | AA12: 0 | AD12: 0 | AE12: 0 | AL12: 36
B13: ДЕМЧЕНКО ВИКТОРИЯ | D13: 0 | K13: 27 | L13: 31 | N13: 23 | P13: 36 | Q13: 27 | R13: 28 | S13: 27 | U13: 18 | W13: 30 | X13: 27 | Y13: 22 | Z13: 23 | AB13: 28 | AD13: 31 | AE13: 30 | AL13: 408
B14: ЗАРОЩИНЦЕВ НИКОЛАЙ | C14: 41 | D14: 17 | K14: 37 | N14: 33 | O14: 28 | P14: 45 | Q14: 34 | R14: 32 | U14: 28 | V14: 31 | W14: 42 | X14: 42 | Y14: 33 | AB14: 29 | AC14: 24 | AD14: 31 | AE14: 27 | AL14: 554
B15: ВЕЛИКИЙ ИГОРЬ | D15: 39 | L15: 20 | M15: 30 | N15: 31 | O15: 24 | P15: 41 | R15: 16 | S15: 26 | U15: 28 | V15: 23 | W15: 27 | X15: 30 | Y15: 27 | Z15: 26 | AA15: 30 | AB15: 21 | AE15: 18 | AL15: 457
B16: СКРОМНЫЙ ИВАН | D16: 32 | K16: 25 | L16: 30 | N16: 26 | O16: 25 | P16: 43 | Q16: 32 | R16: 20 | W16: 32 | X16: 28 | Y16: 20 | AB16: 20 | AC16: 14 | AD16: 25 | AE16: 24 | AL16: 396
B17: ИТОГО | C17: =SUM(C7:C16) -> 41 | J17: =SUM(J7:J16) -> 0 | K17: =SUM(K7:K16) -> 201 | L17: =SUM(L7:L16) -> 152 | M17: =SUM(M7:M16) -> 130 | N17: =SUM(N7:N16) -> 215 | O17: =SUM(O7:O16) -> 161 | P17: =SUM(P7:P16) -> 168 | Q17: =SUM(Q7:Q16) -> 94 | R17: =SUM(R7:R16) -> 194 | S17: =SUM(S7:S16) -> 157 | T17: =SUM(T7:T16) -> 102 | U17: =SUM(U7:U16) -> 175 | V17: =SUM(V7:V16) -> 138 | W17: =SUM(W7:W16) -> 138 | X17: =SUM(X7:X16) -> 132 | Y17: =SUM(Y7:Y16) -> 194 | Z17: =SUM(Z7:Z16) -> 130 | AA17: =SUM(AA7:AA16) -> 120 | AB17: =SUM(AB7:AB16) -> 187 | AC17: =SUM(AC7:AC16) -> 125 | AD17: =SUM(AD7:AD16) -> 120 | AE17: =SUM(AE7:AE16) -> 99 | AF17: =SUM(AF7:AF16) -> 0 | AG17: =SUM(AG7:AG16) -> 0 | AH17: =SUM(AH7:AH16) -> 0 | AI17: =SUM(AI7:AI16) -> 0 | AJ17: =SUM(AJ7:AJ16) -> 0 | AL17: =SUM(C17:AJ17) -> 3173
A21: РЕГИСТРАЦИЯ
A22: № П/П | B22: ФИО | C22: 2014-03-01 | J22: 2014-03-02 | K22: 2014-03-03 | L22: 2014-03-04 | M22: 2014-03-05 | N22: 2014-03-06 | O22: 2014-03-07 | P22: 2014-03-08 | Q22: 2014-03-09 | R22: 2014-03-10 | S22: 2014-03-11 | T22: 2014-03-12 | U22: 2014-03-13 | V22: 2014-03-14 | W22: 2014-03-15 | X22: 2014-03-16 | Y22: 2014-03-17 | Z22: 2014-03-18 | AA22: 2014-03-19 | AB22: 2014-03-20 | AC22: 2014-03-21 | AD22: 2014-03-22 | AE22: 2014-03-23 | AF22: 2014-03-24 | AG22: 2014-03-25 | AH22: 2014-02-26 | AI22: 2014-02-27 | AJ22: 2014-02-28 | AL22: ВСЕГО | AO22: лучший | AP22: худший
B23: НОРМА | C23: 2013-12-02 | AO23: лучший | AP23: худший
A24: 29 | B24: ИГНАТОВА ОЛЬГА | J24: 0 | K24: 95 | L24: 175 | M24: 126 | N24: 173 | R24: 129 | S24: 107 | T24: 84 | U24: 1 | AL24: =SUM(C24:AJ24) -> 890 | AO24: =INDEX(B24:B33,MATCH(MAX(AL24:AL33),AL24:AL33,0)) -> МАХЛАЙ АНАСТАСИЯ | AP24: =INDEX(B24:B33,MATCH(MIN(AL24:AL33),AL24:AL33,0)) -> ВЕЛИКИЙ ИГОРЬ
A25: 4 | B25: РАСТРОВА ТАТЬЯНА | J25: 0 | K25: 0 | M25: 0 | N25: 27 | O25: 0 | R25: 0 | S25: 0 | T25: 0 | U25: 0 | V25: 0 | Y25: 0 | Z25: 0 | AA25: 0 | AB25: 0 | AC25: 0 | AD25: 2 | AL25: 29
B26: КРАСНОВА ЛИЛИЯ | J26: 112 | K26: 0 | L26: 0 | M26: 0 | N26: 0 | O26: 6 | R26: 0 | S26: 0 | T26: 0 | U26: 0 | V26: 0 | Y26: 0 | Z26: 13 | AA26: 0 | AB26: 4 | AC26: 0 | AL26: 135
A27: 12 | B27: ПОЗДЫРЕВА АНАСТАСИЯ | C27: 170 | J27: 215 | K27: 125 | N27: 185 | O27: 153 | P27: 200 | Q27: 134 | T27: 175 | U27: 129 | V27: 136 | W27: 134 | X27: 142 | Y27: 134 | AB27: 118 | AC27: 99 | AD27: 172 | AE27: 108 | AL27: 2529
B28: ЕЛЕСЕЦКАЯ ВЛАДИСЛАВА | J28: 0 | K28: 1 | L28: 0 | M28: 1 | N28: 1 | O28: 0 | R28: 0 | S28: 1 | T28: 0 | U28: 0 | V28: 0 | Y28: 0 | Z28: 0 | AA28: 0 | AB28: 0 | AC28: 0 | AL28: 4
A29: 7 | B29: МАХЛАЙ АНАСТАСИЯ | C29: 185 | J29: 6 | K29: 220 | L29: 200 | M29: 262 | P29: 264 | Q29: 184 | R29: 225 | S29: 252 | T29: 230 | U29: 229 | W29: 247 | X29: 172 | Y29: 230 | Z29: 266 | AA29: 255 | AD29: 186 | AE29: 135 | AL29: 3748
B30: ДЕМЧЕНКО ВИКТОРИЯ | J30: 178 | K30: 0 | L30: 0 | N30: 1 | P30: 0 | Q30: 0 | R30: 0 | S30: 0 | U30: 0 | W30: 0 | X30: 1 | Y30: 1 | Z30: 0 | AB30: 0 | AD30: 0 | AE30: 0 | AL30: 181
B31: ЗАРОЩИНЦЕВ НИКОЛАЙ | C31: 0 | J31: 26 | K31: 2 | N31: 5 | O31: 22 | P31: 10 | Q31: 25 | R31: 16 | U31: 9 | V31: 2 | W31: 0 | X31: 0 | Y31: 0 | AB31: 0 | AC31: 0 | AD31: 5 | AE31: 1 | AL31: 123
B32: ВЕЛИКИЙ ИГОРЬ | J32: 0 | L32: 0 | M32: 0 | N32: 0 | O32: 0 | P32: 0 | R32: 0 | S32: 0 | U32: 0 | V32: 0 | W32: 0 | X32: 0 | Y32: 0 | Z32: 0 | AA32: 0 | AB32: 0 | AE32: 0 | AL32: 0
B33: СКРОМНЫЙ ИВАН | J33: 0 | K33: 0 | L33: 0 | N33: 0 | O33: 0 | P33: 0 | Q33: 0 | R33: 0 | W33: 0 | X33: 0 | Y33: 0 | AB33: 0 | AC33: 0 | AD33: 0 | AE33: 0 | AL33: 0
B34: ИТОГО | C34: =SUM(C24:C33) -> 355 | J34: =SUM(J24:J33) -> 537 | K34: =SUM(K24:K33) -> 443 | L34: =SUM(L24:L33) -> 375 | M34: =SUM(M24:M33) -> 389 | N34: =SUM(N24:N33) -> 392 | O34: =SUM(O24:O33) -> 181 | P34: =SUM(P24:P33) -> 474 | Q34: =SUM(Q24:Q33) -> 343 | R34: =SUM(R24:R33) -> 370 | S34: =SUM(S24:S33) -> 360 | T34: =SUM(T24:T33) -> 489 | U34: =SUM(U24:U33) -> 368 | V34: =SUM(V24:V33) -> 138 | W34: =SUM(W24:W33) -> 381 | X34: =SUM(X24:X33) -> 315 | Y34: =SUM(Y24:Y33) -> 365 | Z34: =SUM(Z24:Z33) -> 279 | AA34: =SUM(AA24:AA33) -> 255 | AB34: =SUM(AB24:AB33) -> 122 | AC34: =SUM(AC24:AC33) -> 99 | AD34: =SUM(AD24:AD33) -> 365 | AE34: =SUM(AE24:AE33) -> 244 | AF34: =SUM(AF24:AF33) -> 0 | AG34: =SUM(AG24:AG33) -> 0 | AH34: =SUM(AH24:AH33) -> 0 | AI34: =SUM(AI24:AI33) -> 0 | AJ34: =SUM(AJ24:AJ33) -> 0 | AL34: =SUM(C34:AJ34) -> 7639
A38: ВРЕМЯ
A39: № П/П | B39: ФИО | C39: 2014-03-01 | J39: 2014-03-02 | K39: 2014-03-03 | L39: 2014-03-04 | M39: 2014-03-05 | N39: 2014-03-06 | O39: 2014-03-07 | P39: 2014-03-08 | Q39: 2014-03-09 | R39: 2014-03-10 | S39: 2014-03-11 | T39: 2014-03-12 | U39: 2014-03-13 | V39: 2014-03-14 | W39: 2014-03-15 | X39: 2014-03-16 | Y39: 2014-03-17 | Z39: 2014-03-18 | AA39: 2014-03-19 | AB39: 2014-03-20 | AC39: 2014-03-21 | AD39: 2014-03-22 | AE39: 2014-03-23 | AF39: 2014-03-24 | AG39: 2014-03-25 | AH39: 2014-03-26 | AI39: 2014-02-27 | AJ39: 2014-02-28 | AL39: ВСЕГО | AO39: лучший | AP39: худший
B40: НОРМА | AO40: лучший | AP40: худший
A41: 29 | B41: ИГНАТОВА ОЛЬГА | J41: 127 | K41: 34.5 | L41: -54 | M41: 109 | N41: -78.5 | R41: -14.5 | S41: 120 | T41: 122.5 | U41: 394.5 | AL41: =SUM(C41:AJ41) -> 760.5 | AO41: =INDEX(B41:B50,MATCH(MIN(AL41:AL50),AL41:AL50,0)) -> МАХЛАЙ АНАСТАСИЯ | AP41: =INDEX(B41:B50,MATCH(MAX(AL41:AL50),AL41:AL50,0)) -> ЕЛЕСЕЦКАЯ ВЛАДИСЛАВА
A42: 4 | B42: РАСТРОВА ТАТЬЯНА | J42: 137 | K42: -28 | M42: -51 | N42: -19.5 | O42: 82 | R42: 52 | S42: 5 | T42: 76 | U42: -11 | V42: 111 | Y42: -6 | Z42: 48 | AA42: 54 | AB42: 68 | AC42: 58 | AD42: 56.5 | AL42: 632
B43: КРАСНОВА ЛИЛИЯ | J43: 136 | K43: 40 | L43: -30.5 | M43: 67 | N43: -23 | O43: 92 | R43: 66 | S43: -35 | T43: 52 | U43: 64 | V43: 115 | Y43: 92 | Z43: 116 | AA43: 73 | AB43: 38 | AC43: 112 | AL43: 974.5
A44: 12 | B44: ПОЗДЫРЕВА АНАСТАСИЯ | C44: -12 | J44: -144 | K44: 110 | N44: -65 | O44: 19.5 | P44: -121.5 | Q44: 80.5 | T44: -43.5 | U44: 93 | V44: 52.5 | W44: 18.5 | X44: -10 | Y44: 19 | AB44: 119 | AC44: 190.5 | AD44: -30 | AE44: 152.5 | AL44: 429
B45: ЕЛЕСЕЦКАЯ ВЛАДИСЛАВА | J45: 128 | K45: 175 | L45: 174 | M45: 151.5 | N45: 132.5 | O45: 173 | R45: 166 | S45: 158.5 | T45: 105 | U45: 191 | V45: 175 | Y45: 224 | Z45: 178 | AA45: 156 | AB45: 215 | AC45: 197 | AL45: 2699.5
A46: 7 | B46: МАХЛАЙ АНАСТАСИЯ | C46: -59.5 | J46: 130.5 | K46: -163 | L46: -203 | M46: -278.5 | P46: -287 | Q46: -58.5 | R46: -188 | S46: -258.5 | T46: -209 | U46: -178 | W46: -248.5 | X46: -40 | Y46: -192 | Z46: -316 | AA46: -250 | AD46: -79 | AE46: 81 | AL46: -2797
B47: ДЕМЧЕНКО ВИКТОРИЯ | J47: -42.5 | K47: 164 | L47: 92 | N47: 173.5 | P47: 44 | Q47: 141 | R47: 121 | S47: 136 | U47: 243 | W47: 98 | X47: 132.5 | Y47: 189.5 | Z47: 190 | AB47: 123 | AD47: 94 | AE47: 98 | AL47: 1997
B48: ЗАРОЩИНЦЕВ НИКОЛАЙ | C48: -36 | J48: 181.5 | K48: 8 | N48: 51.5 | O48: 61 | P48: -106 | Q48: -12.5 | R48: 35 | U48: 97 | V48: 84 | W48: -43 | X48: -40 | Y48: 72 | AB48: 108 | AC48: 172 | AD48: 72.5 | AE48: 131.5 | AL48: 836.5
B49: ВЕЛИКИЙ ИГОРЬ | J49: 1 | L49: 226 | M49: 94 | N49: 94 | O49: 171 | P49: -23 | R49: 264 | S49: 131 | U49: 127 | V49: 180 | W49: 136 | X49: 98 | Y49: 136 | Z49: 152 | AA49: 100 | AB49: 218 | AE49: 244 | AL49: 2349
B50: СКРОМНЫЙ ИВАН | J50: 75 | K50: 167 | L50: 117 | N50: 148 | O50: 173 | P50: -38 | Q50: 75 | R50: 235 | W50: 85 | X50: 124 | Y50: 224 | AB50: 230 | AC50: 293 | AD50: 157 | AE50: 171 | AL50: 2236
B51: ИТОГО | C51: =SUM(C41:C50) -> -107.5 | J51: =SUM(J41:J50) -> 729.5 | K51: =SUM(K41:K50) -> 507.5 | L51: =SUM(L41:L50) -> 321.5 | M51: =SUM(M41:M50) -> 92 | N51: =SUM(N41:N50) -> 413.5 | O51: =SUM(O41:O50) -> 771.5 | P51: =SUM(P41:P50) -> -531.5 | Q51: =SUM(Q41:Q50) -> 225.5 | R51: =SUM(R41:R50) -> 736.5 | S51: =SUM(S41:S50) -> 257 | T51: =SUM(T41:T50) -> 103 | U51: =SUM(U41:U50) -> 1020.5 | V51: =SUM(V41:V50) -> 717.5 | W51: =SUM(W41:W50) -> 46 | X51: =SUM(X41:X50) -> 264.5 | Y51: =SUM(Y41:Y50) -> 758.5 | Z51: =SUM(Z41:Z50) -> 368 | AA51: =SUM(AA41:AA50) -> 133 | AB51: =SUM(AB41:AB50) -> 1119 | AC51: =SUM(AC41:AC50) -> 1022.5 | AD51: =SUM(AD41:AD50) -> 271 | AE51: =SUM(AE41:AE50) -> 878 | AF51: =SUM(AF41:AF50) -> 0 | AG51: =SUM(AG41:AG50) -> 0 | AH51: =SUM(AH41:AH50) -> 0 | AI51: =SUM(AI41:AI50) -> 0 | AJ51: =SUM(AJ41:AJ50) -> 0 | AL51: =SUM(C51:AJ51) -> 10117

Sheet ВВОД
I1: ВВОД

Sheet РЕГИСТРАЦИЯ
I1: РЕГИСТРАЦИЯ

Sheet ВРЕМЯ
I1: ВРЕМЯ
H18: РЕГИСТРАЦИЯ
H36: ВРЕМЯ
